lending/lending_fUSD_20250706
["ID","MTS","AMOUNT","RATE_DAILY","PERIOD"]
[369895804,1751767838681,-176.21559393,0.00019654,2]
[369895806,1751767838691,-460.0,0.00019654,2]
[369895808,1751767838701,-460.0,0.00019654,2]
[369895810,1751767838711,-460.0,0.00019654,2]
[369895812,1751767838720,-73.73537125,0.00019654,2]
[369895815,1751767838738,-268.61,0.00019654,2]
[369895817,1751767838749,-117.65462875,0.00019654,2]
[369895819,1751767838759,-373.57921125,0.00019654,2]
[369895821,1751767838770,-151.40317844,0.00019654,2]
[369895823,1751767838779,-460.0,0.00019654,2]
[369895825,1751767838788,-83.55382831,0.00019654,2]
[369895831,1751767838833,-68.87417169,0.00019654,2]
[369895833,1751767838842,-433.487804,0.00019654,2]
[369895835,1751767838854,-96.6814832,0.00019654,2]
[369895837,1751767838863,-460.0,0.00019654,2]
[369895839,1751767838873,-467.82496432,0.00019654,2]
[369895841,1751767838883,-460.0,0.00019654,2]
[369895843,1751767838893,-469.04621463,0.00019654,2]
[369895845,1751767838902,-460.0,0.00019654,2]
[369895847,1751767838911,-460.0,0.00019654,2]
[369895849,1751767838920,-467.8281914,0.00019654,2]
[369895851,1751767838930,-460.0,0.00019654,2]
[369895853,1751767838939,-479.31182329,0.00019654,2]
[369895855,1751767838948,-492.5770764,0.00019654,2]
[369895857,1751767838958,-515.70309479,0.00019654,2]
[369895859,1751767838968,-475.03721999,0.00019654,2]
[369895861,1751767838978,-492.30771552,0.00019654,2]
[369895863,1751767838987,-460.0,0.00019654,2]
[369895865,1751767838996,-466.52705532,0.00019654,2]
[369895866,1751767839006,-460.0,0.00019654,2]
[369895869,1751767839016,-463.53339327,0.00019654,2]
[369895871,1751767839025,-503.69086805,0.00019654,2]
[369895873,1751767839035,-460.0,0.00019654,2]
[369895874,1751767839044,-460.0,0.00019654,2]
[369895876,1751767839054,-460.0,0.00019654,2]
[369895878,1751767839063,-468.3735093,0.00019654,2]
[369895880,1751767839072,-461.52927258,0.00019654,2]
[369895882,1751767839081,-460.0,0.00019654,2]
[369895884,1751767839091,-460.0,0.00019654,2]
[369895886,1751767839100,-455.73970314,0.00019654,2]
[369895888,1751767839110,-162.48943245,0.00019654,2]
[369895891,1751767839122,-332.44425471,0.00019654,2]
[369895893,1751767839132,-462.52509916,0.00019654,2]
[369895895,1751767839141,-465.93943064,0.00019654,2]
[369895897,1751767839151,-460.0,0.00019654,2]
[369895899,1751767839160,-465.36516673,0.00019654,2]
[369895901,1751767839170,-460.0,0.00019654,2]
[369895903,1751767839179,-312.51668772,0.00019654,2]
[369895957,1751767839699,-889.452,0.00019141,2]
[369895959,1751767839710,-460.0,0.00019598,2]
[369895961,1751767839720,-159.92925917,0.00019654,2]
[369895963,1751767839730,-468.58055832,0.00019654,2]
[369895965,1751767839740,-460.0,0.00019654,2]
[369895967,1751767839750,-470.36076684,0.00019654,2]
[369895969,1751767839759,-460.0,0.00019654,2]
[369895971,1751767839769,-464.10561033,0.00019654,2]
[369895973,1751767839779,-464.47656116,0.00019654,2]
[369895975,1751767839789,-460.0,0.00019654,2]
[369895977,1751767839798,-466.22817304,0.00019654,2]
[369895979,1751767839807,-254.2671775,0.00019654,2]
[369895981,1751767839819,-209.00082383,0.00019654,2]
[369895983,1751767839828,-470.15263404,0.00019654,2]
[369895985,1751767839837,-463.70696712,0.00019654,2]
[369895987,1751767839846,-1531.20735972,0.00019654,2]
[369895989,1751767839856,-468.59393628,0.00019654,2]
[369895992,1751767839866,-477.97200027,0.00019654,2]
[369895994,1751767839875,-460.0,0.00019654,2]
[369895996,1751767839884,-501.14260633,0.00019654,2]
[369895998,1751767839894,-460.0,0.00019654,2]
[369896000,1751767839903,-524.90967751,0.00019654,2]
[369896002,1751767839913,-460.0,0.00019654,2]
[369896004,1751767839923,-460.0,0.00019654,2]
[369896006,1751767839932,-460.0,0.00019654,2]
[369896008,1751767839941,-469.03615725,0.00019654,2]
[369896010,1751767839951,-468.92021183,0.00019654,2]
[369896012,1751767839961,-460.0,0.00019654,2]
[369896015,1751767839972,-460.0,0.00019654,2]
[369896017,1751767839982,-468.35858821,0.00019654,2]
[369896019,1751767839992,-465.51751271,0.00019654,2]
[369896021,1751767840003,-477.28532972,0.00019654,2]
[369896023,1751767840013,-464.44473531,0.00019654,2]
[369896025,1751767840022,-522.10436096,0.00019654,2]
[369896027,1751767840032,-460.0,0.00019654,2]
[369896029,1751767840041,-134.04519891,0.00019654,2]
[369896304,1751767843058,-1175.61318902,0.00019078,2]
[369896306,1751767843070,-1890.00000001,0.00019078,2]
[369896575,1751767846034,-3391.165382,0.00019078,2]
[369896592,1751767846192,-329.71212897,0.00019078,2]
[369896594,1751767846202,-460.0,0.00019599,2]
[369896596,1751767846212,-460.0,0.00019599,2]
[369896597,1751767846222,-401.0716837,0.00019599,2]
[369898840,1751768034057,250.0,0.00015,2]
[369898841,1751768297059,364.59,0.00013699,2]
[369898843,1751768707699,39671.41,0.00014,2]
[369898844,1751768707726,35151.63101929,0.00014,2]
[369898845,1751768707750,60000.0,0.00014,2]
[369898846,1751768707777,60000.0,0.00014,2]
[369898847,1751768707801,60000.0,0.00014,2]
[369898848,1751768707826,60000.0,0.00014,2]
[369898849,1751768707850,60000.0,0.00014,2]
[369898850,1751768707874,60000.0,0.00014,2]
[369898851,1751768707900,60000.0,0.00014,2]
[369898852,1751768707923,60000.0,0.00014,2]
[369898853,1751768707949,60000.0,0.00014,2]
[369898854,1751768707975,60000.0,0.00014,2]
[369898855,1751768708001,60000.0,0.00014,2]
[369898856,1751768708028,60000.0,0.00014,2]
[369898857,1751768708061,60000.0,0.00014,2]
[369898858,1751768708095,60000.0,0.00014,2]
[369898859,1751768708127,60000.0,0.00014,2]
[369898860,1751768708157,49548.32993647,0.00014,2]
[369898861,1751768842776,169.77134964,0.0001305,2]
[369898862,1751768882060,10281.89871389,0.00014,2]
[369898863,1751768882084,60000.0,0.00014,2]
[369898864,1751768882107,60000.0,0.00014,2]
[369898865,1751768882130,51216.009028,0.00014,2]
[369898871,1751768928049,2207.11955129,0.00013368,2]
[369898898,1751769032209,-339.17912446,0.0001749,2]
[369898913,1751769032724,-165.82087554,0.0001749,2]
[369898915,1751769032734,-769.98207878,0.00017898,2]
[369898917,1751769032743,-769.98207878,0.00017899,2]
[369898919,1751769032753,-294.2149669,0.000179,2]
[369898921,1751769032766,-2828.01683133,0.000179,2]
[369898923,1751769032778,-184.0,0.00017988,2]
[369898925,1751769032787,-1200.0,0.00017988,2]
[369898927,1751769032796,-151.0,0.00017989,2]
[369898929,1751769032805,-151.0,0.00017989,2]
[369898931,1751769032814,-151.0,0.00017989,2]
[369898933,1751769032824,-39.61501275,0.00017989,2]
[369898935,1751769032836,-111.38498725,0.00017989,2]
[369898937,1751769032845,-151.0,0.00017989,2]
[369898939,1751769032855,-151.0,0.00017989,2]
[369898941,1751769032864,-151.0,0.00017989,2]
[369898943,1751769032873,-151.0,0.00017989,2]
[369898945,1751769032882,-151.0,0.00017989,2]
[369898947,1751769032891,-151.0,0.00017989,2]
[369898949,1751769032900,-151.0,0.00017989,2]
[369898951,1751769032910,-25.24409453,0.00017998,2]
[369898953,1751769032922,-1174.75590547,0.00017998,2]
[369898955,1751769032931,-150.0,0.00017998,2]
[369898957,1751769032941,-437.99598859,0.00017999,2]
[369898959,1751769032956,-2169.94456786,0.00017999,2]
[369898961,1751769032967,-1404.98903124,0.00017999,2]
[369898964,1751769032981,-350.0,0.00017999,2]
[369898966,1751769032992,-748.44104968,0.00017999,2]
[369898968,1751769033003,-1545.32583997,0.00017999,2]
[369898970,1751769033014,-454.92529219,0.00017999,2]
[369898972,1751769033026,-629.17442911,0.00017999,2]
[369898974,1751769033037,-505.05,0.00017999,2]
[369898976,1751769033048,-454.21859605,0.00017999,2]
[369898978,1751769033059,-675.41003666,0.00017999,2]
[369898981,1751769033070,-2269.33792627,0.00017999,2]
[369898983,1751769033085,-841.0347766,0.00017999,2]
[369898985,1751769033097,-11414.15246578,0.00017999,2]
[369898987,1751769033106,-3454.734,0.00017999,5]
[369898989,1751769033116,-187.21,0.00017999,2]
[369898991,1751769033125,-6078.0,0.00018,2]
[369898993,1751769033134,-862.89,0.00018034,2]
[369898995,1751769033143,-200.0,0.00018044,7]
[369898997,1751769033153,-250.0,0.00018047,2]
[369898999,1751769033163,-1000.0,0.00018054,2]
[369899001,1751769033172,-166.87,0.00018063,2]
[369899003,1751769033182,-359.71,0.00018142,2]
[369899005,1751769033192,-964.28,0.00018145,2]
[369899007,1751769033203,-216.1,0.00018149,2]
[369899009,1751769033212,-200.0,0.00018149,2]
[369899011,1751769033221,-1107.905737,0.00018238,2]
[369899013,1751769033230,-251.66,0.00018242,2]
[369899015,1751769033240,-4375.7,0.00018248,2]
[369899017,1751769033249,-163.9,0.00018555,2]
[369899019,1751769033259,-3122.23179803,0.0001859,2]
[369899021,1751769033268,-152.0,0.00018599,3]
[369899023,1751769033277,-421.39,0.00018632,2]
[369899025,1751769033287,-421.39,0.00018641,2]
[369899027,1751769033296,-421.39,0.00018651,2]
[369899029,1751769033307,-421.39,0.00018661,2]
[369899031,1751769033316,-421.39,0.00018671,2]
[369899033,1751769033326,-421.39,0.00018681,2]
[369899035,1751769033335,-421.39,0.0001869,2]
[369899037,1751769033344,-421.39,0.000187,2]
[369899038,1751769033353,-421.39,0.0001871,2]
[369899040,1751769033363,-421.39,0.0001872,2]
[369899042,1751769033372,-421.39,0.0001873,2]
[369899044,1751769033381,-421.39,0.0001874,2]
[369899046,1751769033390,-421.39,0.00018749,2]
[369899048,1751769033400,-421.39,0.00018759,2]
[369899050,1751769033409,-421.39,0.00018769,2]
[369899052,1751769033419,-421.39,0.00018779,2]
[369899054,1751769033428,-421.39,0.00018789,2]
[369899056,1751769033437,-421.39,0.00018798,2]
[369899058,1751769033446,-421.39,0.00018808,2]
[369899060,1751769033455,-300.0,0.00018811,2]
[369899062,1751769033464,-1039.06133753,0.00018811,2]
[369899063,1751769033473,-307.99706716,0.00018811,2]
[369899065,1751769033482,-207.4,0.00018811,2]
[369899067,1751769033491,-160.0,0.00018811,2]
[369899069,1751769033501,-421.39,0.00018818,2]
[369899071,1751769033511,-10400.95635025,0.00018965,2]
[369899073,1751769033520,-186.16,0.0001899,2]
[369899075,1751769033530,-186.16,0.0001899,2]
[369899077,1751769033539,-186.16,0.0001899,2]
[369899079,1751769033548,-604.25,0.0001899,2]
[369899081,1751769033557,-604.25,0.0001899,2]
[369899083,1751769033567,-2633.17,0.00019,2]
[369899085,1751769033576,-2633.17,0.00019,2]
[369899087,1751769033585,-2633.17,0.00019,2]
[369899089,1751769033595,-31771.14924968,0.00019,2]
[369899149,1751769034176,-2845.15872488,0.00019,2]
[369899151,1751769034188,-1118.12169975,0.00019,2]
[369899153,1751769034200,-819.33484271,0.00019,2]
[369899158,1751769034236,-320784.73534106,0.00019,2]
[369899160,1751769034247,-180922.46026121,0.00019,2]
[369899162,1751769034259,-1338.27730298,0.00019,2]
[369899164,1751769034270,-15254.59113758,0.00019,2]
[369899167,1751769034282,-1200.0,0.00019,2]
[369899349,1751769038168,-500.0,0.00018999,2]
[369899350,1751769038177,-500.0,0.00018999,2]
[369899351,1751769038187,-500.0,0.00018999,2]
[369899352,1751769038196,-491.09892508,0.00018999,2]
[369899353,1751769038205,-500.0,0.00018999,2]
[369899354,1751769038215,-500.0,0.00018999,2]
[369899355,1751769038224,-500.0,0.00018999,2]
[369899356,1751769038233,-2579.24933212,0.00019,2]
[369899357,1751769038253,-352.67470439,0.00019,2]
[369899358,1751769038336,-45159.76980502,0.00019,2]
[369899359,1751769038349,-1004.84870671,0.00019,2]
[369899360,1751769038360,-1356.55,0.00019,2]
[369899361,1751769038395,-277.595,0.00019,2]
[369899362,1751769038406,-1222.56000018,0.00019,2]
[369899363,1751769038452,-792.3496034,0.00019,2]
[369899364,1751769038467,-6159.37932687,0.00019,2]
[369899365,1751769038509,-1010.70537552,0.00019,2]
[369899553,1751769040536,-31285.59393395,0.00019,2]
[369899555,1751769040545,-463.36373805,0.00019068,2]
[369899572,1751769040703,-336.75626195,0.00019068,2]
[369899574,1751769040712,-51.54888593,0.00019178,2]
[369899835,1751769043514,-314.54645375,0.00018999,2]
[369899837,1751769043523,-98.83657161,0.00018999,2]
[369900107,1751769046295,-401.16342839,0.00018999,2]
[369900109,1751769046305,-500.0,0.00018999,2]
[369900111,1751769046314,-500.0,0.00018999,2]
[369900113,1751769046323,-500.0,0.00018999,2]
[369900115,1751769046333,-217.21051254,0.00018999,2]
[369900117,1751769046342,-327.72757675,0.00018999,2]
[369900119,1751769046351,-500.0,0.00018999,2]
[369900121,1751769046360,-15.33690527,0.00018999,2]
[369900163,1751769046764,-484.66309473,0.00018999,2]
[369900165,1751769046776,-500.0,0.00018999,2]
[369900167,1751769046785,-500.0,0.00018999,2]
[369900169,1751769046794,-624.52686092,0.00018999,2]
[369900171,1751769046803,-624.52686092,0.00018999,2]
[369900173,1751769046813,-500.0,0.00018999,2]
[369900175,1751769046822,-624.52686092,0.00018999,2]
[369900177,1751769046831,-624.52686092,0.00018999,2]
[369900179,1751769046841,-500.0,0.00018999,2]
[369900181,1751769046850,-171.9282575,0.00018999,2]
[369900183,1751769046858,-624.52686092,0.00018999,2]
[369900185,1751769046868,-624.52686092,0.00018999,2]
[369900187,1751769046877,-500.0,0.00018999,2]
[369900188,1751769046886,-624.52686092,0.00018999,2]
[369900190,1751769046895,-624.52686092,0.00018999,2]
[369900192,1751769046905,-624.52686092,0.00018999,2]
[369900194,1751769046914,-624.52686092,0.00018999,2]
[369900196,1751769046923,-624.52686092,0.00018999,2]
[369900198,1751769046933,-624.52686092,0.00018999,2]
[369900200,1751769046942,-492.24631673,0.00018999,2]
[369900421,1751769384999,346.36,0.00013699,2]
[369900432,1751770231472,-170.74,0.0001452,2]
[369900433,1751770231481,-250.56831572,0.00016317,2]
[369900434,1751770231491,-507.0,0.0001676,2]
[369900435,1751770231500,-337.78614604,0.00017352,2]
[369900436,1751770231628,-494.0206605,0.00017352,2]
[369900437,1751770231639,-255.68328607,0.00017352,2]
[369900438,1751770231686,-403.67546959,0.00017352,2]
[369900442,1751770237407,-516.22,0.00017352,2]
[369900443,1751770237450,-482.42285437,0.00017352,2]
[369900444,1751770237461,-407.57187343,0.00017352,2]
[369900445,1751770237473,-3315.51914327,0.00017352,2]
[369900446,1751770237513,-3544.67193068,0.00017352,2]
[369900447,1751770237670,-434.42987864,0.00017352,2]
[369900596,1751770239542,-8311.99875741,0.00017352,2]
[369900598,1751770239551,-1000.0,0.00017783,2]
[369900600,1751770239561,-1581.37393111,0.00017784,2]
[369900632,1751770239856,-4350.8,0.00017784,2]
[369901727,1751770794350,337.21,0.00013699,2]
[369901779,1751771219354,509.0,0.0001376,2]
[369901781,1751771431838,-173.99069529,0.0001476,2]
[369901782,1751771431847,-133.39528987,0.00016754,2]
[369901783,1751771431859,-277.89060096,0.00016754,2]
[369901792,1751771437685,-290.8039225,0.00016754,2]
[369901959,1751771439939,-297.91018667,0.00016754,2]
[369901961,1751771439951,-67.05689919,0.00016789,2]
[369901977,1751771440100,-325.94310081,0.00016789,2]
[369901980,1751771440111,-1849.05689969,0.0001679,2]
[369901982,1751771440125,-1705.5582732,0.0001679,2]
[369901984,1751771440138,-574.51572812,0.0001679,2]
[369901992,1751771440199,-2504.64407047,0.0001679,2]
[369901994,1751771440213,-5642.71644768,0.0001679,2]
[369901996,1751771440226,-707.16663727,0.0001679,2]
[369901999,1751771440240,-1740.0911033,0.0001679,2]
[369902001,1751771440253,-1199.30233872,0.0001679,2]
[369902004,1751771440267,-1034.0,0.0001679,2]
[369902006,1751771440280,-437.86900676,0.0001679,2]
[369902232,1751771442866,-1269.81111015,0.0001679,2]
[369902254,1751771443078,-2320.9,0.0001679,2]
[369902518,1751771445757,-276.48679559,0.0001679,2]
[369902520,1751771445771,-262.9,0.0001679,2]
[369902522,1751771445785,-1165.7120986,0.0001679,2]
[369902537,1751771445923,-399.33079043,0.0001679,2]
[369902540,1751771445938,-809.93870002,0.0001679,2]
[369902542,1751771445950,-250.0,0.00016808,2]
[369902544,1751771445961,-174.202654,0.000169,2]
[369902547,1751771445974,-194.14900339,0.000169,2]
[369902549,1751771445987,-138102.78670936,0.00016972,2]
[369902551,1751771446001,-85566.11659492,0.00016972,2]
[369903692,1751771458653,537.0,0.0001376,2]
[369904901,1751771805094,328.23,0.00013699,2]
[369904902,1751772308210,4519.07142071,0.00014,2]
[369904903,1751772308245,60000.0,0.00014,2]
[369904904,1751772308281,60000.0,0.00014,2]
[369904905,1751772308305,60000.0,0.00014,2]
[369904906,1751772308329,60000.0,0.00014,2]
[369904907,1751772308375,60000.0,0.00014,2]
[369904908,1751772308404,60000.0,0.00014,2]
[369904909,1751772308433,60000.0,0.00014,2]
[369904911,1751772493432,1064.0,0.0002101,120]
[369904936,1751772631927,-208.46655947,0.0001389,2]
[369904937,1751772631937,-208.46655947,0.00013899,2]
[369904938,1751772631947,-300.0,0.00013998,2]
[369904939,1751772631956,-1200.0,0.00013998,2]
[369904940,1751772631966,-150.0,0.00013998,2]
[369904941,1751772631975,-1200.0,0.00013999,2]
[369904942,1751772631985,-500.0,0.00013999,2]
[369904943,1751772631994,-500.0,0.00013999,2]
[369904944,1751772632004,-468.57894584,0.00013999,2]
[369904945,1751772632013,-386.57924086,0.00013999,2]
[369904946,1751772632023,-500.0,0.00013999,2]
[369904947,1751772632032,-387.89988056,0.00013999,2]
[369904948,1751772632042,-485.62065626,0.00013999,2]
[369904949,1751772632051,-500.0,0.00013999,2]
[369904950,1751772632061,-216.02819881,0.00013999,2]
[369904951,1751772632070,-500.0,0.00013999,2]
[369904952,1751772632079,-500.0,0.00013999,2]
[369904953,1751772632088,-500.0,0.00013999,2]
[369904954,1751772632098,-500.0,0.00013999,2]
[369904955,1751772632107,-500.0,0.00013999,2]
[369904956,1751772632116,-500.0,0.00013999,2]
[369904957,1751772632126,-500.0,0.00013999,2]
[369904958,1751772632135,-500.0,0.00013999,2]
[369904959,1751772632144,-500.0,0.00013999,2]
[369904960,1751772632154,-500.0,0.00013999,2]
[369904961,1751772632163,-500.0,0.00013999,2]
[369904962,1751772632172,-500.0,0.00013999,2]
[369904963,1751772632181,-500.0,0.00013999,2]
[369904964,1751772632190,-500.0,0.00013999,2]
[369904965,1751772632200,-500.0,0.00013999,2]
[369904966,1751772632209,-500.0,0.00013999,2]
[369904967,1751772632218,-500.0,0.00013999,2]
[369904968,1751772632227,-500.0,0.00013999,2]
[369904969,1751772632236,-500.0,0.00013999,2]
[369904970,1751772632245,-500.0,0.00013999,2]
[369904971,1751772632255,-500.0,0.00013999,2]
[369904973,1751772632264,-500.0,0.00013999,2]
[369904974,1751772632273,-500.0,0.00013999,2]
[369904976,1751772632283,-500.0,0.00013999,2]
[369904977,1751772632292,-500.0,0.00013999,2]
[369904978,1751772632301,-500.0,0.00013999,2]
[369904979,1751772632311,-500.0,0.00013999,2]
[369904981,1751772632320,-500.0,0.00013999,2]
[369904983,1751772632330,-500.0,0.00013999,2]
[369904985,1751772632339,-500.0,0.00013999,2]
[369904987,1751772632348,-500.0,0.00013999,2]
[369904989,1751772632358,-500.0,0.00013999,2]
[369904991,1751772632367,-368.65524661,0.00013999,2]
[369904993,1751772632376,-500.0,0.00013999,2]
[369904995,1751772632386,-500.0,0.00013999,2]
[369904997,1751772632395,-500.0,0.00013999,2]
[369904998,1751772632404,-500.0,0.00013999,2]
[369905000,1751772632414,-500.0,0.00013999,2]
[369905001,1751772632423,-500.0,0.00013999,2]
[369905002,1751772632432,-500.0,0.00013999,2]
[369905003,1751772632442,-586.18830752,0.00013999,2]
[369905004,1751772632451,-586.18830752,0.00013999,2]
[369905005,1751772632460,-586.18830752,0.00013999,2]
[369905006,1751772632470,-586.18830752,0.00013999,2]
[369905007,1751772632479,-586.18830752,0.00013999,2]
[369905008,1751772632488,-586.18830752,0.00013999,2]
[369905009,1751772632497,-586.18830752,0.00013999,2]
[369905010,1751772632506,-586.18830752,0.00013999,2]
[369905011,1751772632515,-586.18830752,0.00013999,2]
[369905012,1751772632527,-586.18830752,0.00013999,2]
[369905013,1751772632536,-586.18830752,0.00013999,2]
[369905014,1751772632545,-586.18830752,0.00013999,2]
[369905015,1751772632555,-586.18830752,0.00013999,2]
[369905016,1751772632564,-586.18830752,0.00013999,2]
[369905017,1751772632573,-586.18830752,0.00013999,2]
[369905018,1751772632583,-586.18830752,0.00013999,2]
[369905019,1751772632592,-586.18830752,0.00013999,2]
[369905020,1751772632601,-586.18830752,0.00013999,2]
[369905021,1751772632611,-586.18830752,0.00013999,2]
[369905023,1751772632621,-586.18830752,0.00013999,2]
[369905024,1751772632630,-586.18830752,0.00013999,2]
[369905025,1751772632639,-586.18830752,0.00013999,2]
[369905026,1751772632648,-586.18830752,0.00013999,2]
[369905028,1751772632658,-586.18830752,0.00013999,2]
[369905030,1751772632667,-586.18830752,0.00013999,2]
[369905032,1751772632676,-586.18830752,0.00013999,2]
[369905033,1751772632685,-586.18830752,0.00013999,2]
[369905035,1751772632696,-586.18830752,0.00013999,2]
[369905037,1751772632706,-586.18830752,0.00013999,2]
[369905038,1751772632715,-586.18830752,0.00013999,2]
[369905039,1751772632724,-586.18830752,0.00013999,2]
[369905040,1751772632734,-586.18830752,0.00013999,2]
[369905041,1751772632744,-586.18830752,0.00013999,2]
[369905042,1751772632753,-586.18830752,0.00013999,2]
[369905043,1751772632763,-569.95540055,0.00013999,2]
[369905044,1751772632772,-569.95540055,0.00013999,2]
[369905045,1751772632781,-569.95540055,0.00013999,2]
[369905046,1751772632791,-569.95540055,0.00013999,2]
[369905047,1751772632800,-569.95540055,0.00013999,2]
[369905048,1751772632810,-569.95540055,0.00013999,2]
[369905049,1751772632819,-569.95540055,0.00013999,2]
[369905050,1751772632828,-569.95540055,0.00013999,2]
[369905051,1751772632837,-569.95540055,0.00013999,2]
[369905052,1751772632846,-569.95540055,0.00013999,2]
[369905053,1751772632855,-569.95540055,0.00013999,2]
[369905054,1751772632866,-569.95540055,0.00013999,2]
[369905055,1751772632875,-569.95540055,0.00013999,2]
[369905056,1751772632884,-34880.92857929,0.00014,2]
[369905057,1751772632893,-248178.32215149,0.00014,2]
[369905058,1751772632906,-195898.59429937,0.00014,2]
[369905059,1751772632915,-194.14900338,0.00014217,2]
[369905060,1751772632924,-540.46510093,0.00014217,2]
[369905061,1751772632933,-504.0,0.00014317,2]
[369905062,1751772632943,-594.0,0.00014317,2]
[369905063,1751772632952,-507.0,0.00014317,2]
[369905064,1751772632962,-250.0,0.00015,2]
[369905065,1751772632971,-255.0,0.00015118,2]
[369905066,1751772632980,-250.0,0.00015323,2]
[369905067,1751772632989,-255.0,0.00015337,2]
[369905068,1751772632998,-1200.0,0.00015398,2]
[369905069,1751772633008,-250.0,0.000154,2]
[369905070,1751772633017,-2144.32,0.00016091,2]
[369905071,1751772633027,-502.0,0.0001611,2]
[369905072,1751772633036,-966.53,0.00016181,2]
[369905073,1751772633045,-23900.0,0.00016184,2]
[369905074,1751772633055,-1616.65,0.00016212,2]
[369905075,1751772633064,-433.0,0.00016322,2]
[369905076,1751772633073,-250.0,0.00016409,2]
[369905077,1751772633083,-852.19661137,0.00016456,2]
[369905078,1751772633092,-1000.0,0.00016473,2]
[369905079,1751772633101,-200.0,0.00016497,2]
[369905080,1751772633111,-200.0,0.00016518,2]
[369905081,1751772633120,-151.0,0.0001664,2]
[369905082,1751772633130,-151.0,0.0001664,2]
[369905083,1751772633140,-151.0,0.0001664,2]
[369905084,1751772633149,-151.0,0.0001664,2]
[369905085,1751772633159,-151.0,0.0001664,2]
[369905086,1751772633168,-151.0,0.0001664,2]
[369905087,1751772633178,-151.0,0.0001664,2]
[369905088,1751772633187,-151.0,0.0001664,2]
[369905089,1751772633197,-151.0,0.0001664,2]
[369905090,1751772633206,-153.60250212,0.0001664,2]
[369905091,1751772633216,-151.0,0.0001664,2]
[369905092,1751772633225,-151.0,0.0001664,2]
[369905093,1751772633234,-151.0,0.0001664,2]
[369905094,1751772633244,-151.0,0.0001664,2]
[369905095,1751772633253,-151.0,0.0001664,2]
[369905096,1751772633262,-16223.44,0.0001665,2]
[369905097,1751772633271,-2751.0,0.00016655,2]
[369905098,1751772633282,-1092.13,0.0001667,2]
[369905099,1751772633291,-150.0,0.00016704,2]
[369905100,1751772633300,-236.76,0.00016705,2]
[369905101,1751772633309,-200.87,0.00016783,2]
[369905102,1751772633319,-610.0,0.0001679,2]
[369905103,1751772633328,-164.09,0.00016799,2]
[369905104,1751772633337,-150.0,0.000168,2]
[369905105,1751772633346,-150.81,0.000168,2]
[369905106,1751772633355,-164.09,0.000168,2]
[369905107,1751772633365,-1027.93713476,0.0001681,2]
[369905108,1751772633374,-168.0,0.00016845,2]
[369905109,1751772633384,-1137.69,0.00016878,2]
[369905110,1751772633394,-171.47,0.00016878,2]
[369905111,1751772633403,-171.47,0.00016878,2]
[369905112,1751772633412,-356.13,0.000169,2]
[369905113,1751772633422,-351.8823419,0.00016955,2]
[369905114,1751772633431,-165.04,0.00016967,2]
[369905115,1751772633441,-1875.81436,0.00016972,2]
[369905116,1751772633450,-4360.8,0.00017,2]
[369905117,1751772633459,-302.06,0.00017034,2]
[369905118,1751772633469,-301.96,0.00017034,2]
[369905119,1751772633479,-1203.15,0.00017034,2]
[369905120,1751772633489,-659.00871782,0.00017095,2]
[369905121,1751772633498,-659.00871782,0.00017095,2]
[369905122,1751772633507,-168.0,0.00017119,2]
[369905123,1751772633516,-1411.0,0.00017126,2]
[369905124,1751772633526,-168.0,0.0001732,2]
[369905125,1751772633535,-150.0,0.00017336,2]
[369905126,1751772633545,-500.0,0.00017336,2]
[369905127,1751772633554,-999.0,0.00017336,2]